bitfinex-derivatives/quotes_BTCF0:USTF0_20241213
["timestamp","ask_amount","ask_price","bid_price","bid_amount"]
[1734056284249,0.10061171,99391.0,99386.0,0.18074056]
[1734056284451,0.050292,99384.0,99382.0,0.18074056]
[1734056284755,0.050293,99383.0,99381.0,0.18074056]
[1734056284955,0.050293,99383.0,99382.0,0.18074056]
[1734056285154,0.15090826,99383.0,99382.0,0.18074056]
[1734056285354,0.24081658,99383.0,99382.0,0.18074056]
[1734056286355,0.15090826,99383.0,99382.0,0.18074056]
[1734056286652,0.15090826,99383.0,99381.0,0.050293]
[1734056286953,0.15090826,99383.0,99382.0,0.18076388]
[1734056288251,0.15090826,99383.0,99381.0,0.050293]
[1734056288650,0.24081658,99383.0,99381.0,0.050293]
[1734056289252,0.08990832,99383.0,99381.0,0.050293]
[1734056289456,0.08990832,99385.0,99384.0,0.050292]
[1734056289757,0.10062184,99388.0,99383.0,0.24105388]
[1734056289961,0.10062184,99388.0,99386.0,0.050291]
[1734056290148,0.08990832,99390.0,99386.0,0.050291]
[1734056290459,0.08990832,99387.0,99386.0,0.050291]
[1734056290753,0.08990832,99387.0,99386.0,0.23109191]
[1734056290951,0.08990832,99388.0,99386.0,0.23109191]
[1734056291254,0.08990832,99388.0,99387.0,0.18080091]
[1734056291862,0.08990832,99389.0,99386.0,0.050291]
[1734056292165,0.08990832,99388.0,99386.0,0.050291]
[1734056293165,0.11986752,99392.0,99386.0,0.050291]
[1734056293166,0.08990832,99387.0,99386.0,0.050291]
[1734056293652,0.08990832,99387.0,99379.0,0.0407]
[1734056293653,0.2204843,99391.0,99385.0,0.24105388]
[1734056293855,0.08997001,99386.0,99385.0,0.24105388]
[1734056294556,0.08998665,99390.0,99385.0,0.050291]
[1734056294855,0.08998665,99393.0,99389.0,0.3608]
[1734056295053,0.08998665,99393.0,99392.0,0.050288]
[1734056296553,0.08998665,99394.0,99392.0,0.050288]
[1734056296755,0.08998665,99394.0,99393.0,0.24119697]
[1734056297061,0.10061121,99394.0,99393.0,0.24119697]
[1734056300356,0.10061121,99394.0,99392.0,0.050288]
[1734056303659,0.10061121,99394.0,99392.0,0.06014845]
[1734056305462,0.10061121,99394.0,99393.0,0.24100702]
[1734056307152,0.10061121,99394.0,99393.0,0.24098703]
[1734056308060,0.10061121,99394.0,99392.0,0.06014845]
[1734056308563,0.10061121,99394.0,99393.0,0.24097679]
[1734056309165,0.03813634,99400.0,99399.0,0.050284]
[1734056309357,0.11986752,99421.0,99418.0,0.050275]
[1734056309557,0.13000431,99426.0,99425.0,0.050271]
[1734056309758,0.11986752,99426.0,99425.0,0.050271]
[1734056309959,0.10058388,99426.0,99425.0,0.050271]
[1734056310366,0.11986752,99428.0,99425.0,0.050271]
[1734056310664,0.130868,99431.0,99425.0,0.050271]
[1734056310665,0.10058388,99426.0,99425.0,0.050271]
[1734056310872,0.11986752,99429.0,99425.0,0.050271]
[1734056311069,0.1005768,99426.0,99425.0,0.050271]
[1734056311367,0.11986752,99430.0,99425.0,0.050271]
[1734056311559,0.2609227,99431.0,99425.0,0.050271]
[1734056311762,0.1005768,99428.0,99425.0,0.050271]
[1734056312058,0.1005768,99428.0,99417.0,0.42455546]
[1734056312059,0.2106547,99431.0,99417.0,0.3608]
[1734056312254,0.050275,99418.0,99417.0,0.1804648]
[1734056312466,0.050276,99416.0,99411.0,0.050278]
[1734056312669,0.050276,99416.0,99412.0,0.050278]
[1734056313268,0.10058591,99415.0,99412.0,0.050278]
[1734056313770,0.0796,99414.0,99412.0,0.050278]
[1734056314367,0.10058996,99413.0,99412.0,0.050278]
[1734056320072,0.11043873,99413.0,99412.0,0.050278]
[1734056322868,0.11043873,99413.0,99406.0,0.050281]
[1734056322869,0.050281,99407.0,99406.0,0.050281]
[1734056323675,0.15087197,99407.0,99406.0,0.050281]
[1734056328978,0.15087197,99407.0,99402.0,0.1804648]
[1734056328979,0.050282,99403.0,99402.0,0.1804648]
[1734056329275,0.050282,99403.0,99396.0,0.60172568]
[1734056329276,0.3608,99404.0,99396.0,0.5412648]
[1734056329468,0.050285,99398.0,99396.0,0.3608]
[1734056330078,0.050291,99385.0,99384.0,0.23103081]
[1734056330264,0.050291,99385.0,99384.0,0.050292]
[1734056330671,0.15089765,99385.0,99384.0,0.050292]
[1734056331967,0.15089765,99385.0,99379.0,0.18224786]
[1734056331968,0.050294,99380.0,99379.0,0.05180305]
[1734056332581,0.15091331,99380.0,99379.0,0.05180305]
[1734056335175,0.15091331,99380.0,99379.0,0.00150905]
[1734056335176,0.51171331,99380.0,99379.0,0.00150905]
[1734056339990,0.52170559,99380.0,99379.0,0.00150905]
[1734056345692,0.050297,99374.0,99373.0,0.050297]
[1734056346289,0.10062437,99374.0,99373.0,0.050297]
[1734056346490,0.00128,99380.0,99379.0,0.050294]
[1734056346789,0.00128,99380.0,99373.0,0.050297]
[1734056346790,0.050288,99391.0,99389.0,0.050289]
[1734056346986,0.050288,99391.0,99387.0,0.05029]
[1734056347202,0.15091237,99391.0,99387.0,0.05029]
[1734056347394,0.15091237,99391.0,99380.0,0.06378419]
[1734056347395,0.10062437,99391.0,99389.0,0.050289]
[1734056348092,0.050283,99401.0,99399.0,0.050284]
[1734056348289,0.06047969,99401.0,99399.0,0.050284]
[1734056348494,0.10061374,99400.0,99399.0,0.050284]
[1734056354403,0.00150923,99420.0,99397.0,0.0798]
[1734056354603,0.050274,99419.0,99415.0,0.050276]
[1734056354803,0.01134953,99420.0,99415.0,0.050276]
[1734056354997,0.050276,99415.0,99409.0,0.050279]
[1734056355308,0.050277,99414.0,99409.0,0.050279]
[1734056355602,0.15087201,99414.0,99409.0,0.050279]
[1734056355810,0.050277,99414.0,99409.0,0.050279]
[1734056356105,0.10059198,99413.0,99410.0,0.050278]
[1734056356705,0.10059198,99413.0,99411.0,0.050278]
[1734056359999,0.050275,99417.0,99407.0,0.0399]
[1734056360211,0.050275,99417.0,99413.0,0.050277]
[1734056360801,0.10059147,99416.0,99413.0,0.050277]
[1734056362107,0.10059147,99416.0,99412.0,0.050277]
[1734056363805,0.10059147,99416.0,99414.0,0.050277]
[1734056364109,0.10059147,99416.0,99415.0,0.3608]
[1734056364808,0.01134953,99420.0,99415.0,0.3608]
[1734056364809,0.00150923,99420.0,99419.0,0.050274]
[1734056369619,0.01015726,99432.0,99431.0,0.050268]
[1734056369920,0.050266,99435.0,99431.0,0.050268]
[1734056370213,0.10058388,99432.0,99431.0,0.050268]
[1734056370513,0.050266,99435.0,99431.0,0.050268]
[1734056370714,0.10058388,99432.0,99431.0,0.050268]
[1734056370914,0.050269,99430.0,99428.0,0.3608]
[1734056371313,0.10057023,99429.0,99428.0,0.3608]
[1734056374507,0.10057023,99429.0,99415.0,0.4007]
[1734056374508,0.05027,99428.0,99421.0,0.050273]
[1734056374713,0.1157,99428.0,99421.0,0.050273]
[1734056375022,0.050273,99422.0,99421.0,0.050273]
[1734056375724,0.15085183,99422.0,99421.0,0.050273]
[1734056381717,0.16114919,99422.0,99421.0,0.050273]
[1734056382919,0.050275,99417.0,99416.0,0.18073881]
[1734056384720,0.050275,99417.0,99415.0,0.411076]
[1734056386429,0.11977388,99423.0,99415.0,0.3608]
[1734056386619,0.11977388,99423.0,99422.0,0.1806378]
[1734056386620,0.050272,99423.0,99422.0,0.1806378]
[1734056386815,0.050272,99423.0,99421.0,0.1806378]
[1734056387124,0.050272,99423.0,99422.0,0.1806378]
[1734056388715,0.050272,99423.0,99421.0,0.050273]
[1734056388914,0.050272,99423.0,99422.0,0.18066008]
[1734056389121,0.050272,99423.0,99421.0,0.050273]
[1734056389618,0.05027,99428.0,99424.0,0.050271]
[1734056389820,0.06013502,99428.0,99424.0,0.050271]
[1734056390029,0.06013502,99428.0,99421.0,0.18067489]
[1734056390030,0.050272,99424.0,99421.0,0.18067489]
[1734056390223,0.050272,99424.0,99407.0,0.4007]
[1734056390224,0.050279,99409.0,99403.0,0.24092568]
[1734056390424,0.050285,99397.0,99396.0,0.3608]
[1734056390724,0.11984871,99401.0,99387.0,0.60172568]
[1734056390930,0.050289,99389.0,99387.0,0.3608]
[1734056392618,0.050289,99389.0,99387.0,0.3698]
[1734056393029,0.051289,99389.0,99387.0,0.3698]
[1734056393725,0.050289,99389.0,99387.0,0.3608]
[1734056395922,0.050289,99389.0,99384.0,0.050292]
[1734056396128,0.050289,99389.0,99385.0,0.3608]
[1734056396428,0.050291,99387.0,99385.0,0.3608]
[1734056397631,0.051291,99387.0,99385.0,0.3698]
[1734056398521,0.051291,99387.0,99385.0,0.3788]
[1734056400431,0.050291,99387.0,99385.0,0.3698]
[1734056400621,0.051291,99387.0,99385.0,0.3788]
[1734056401119,0.051291,99387.0,99385.0,0.3698]
[1734056401427,0.051291,99387.0,99385.0,0.3788]
[1734056401634,0.051291,99387.0,99385.0,0.429091]
[1734056402225,0.001,99387.0,99385.0,0.429091]
[1734056402826,0.001,99387.0,99386.0,0.04401219]
[1734056403222,0.001,99387.0,99385.0,0.429091]
[1734056403430,0.001,99387.0,99385.0,0.3788]
[1734056403431,0.05129,99387.0,99385.0,0.3788]
[1734056403623,0.10061779,99386.0,99385.0,0.3788]
[1734056403931,0.10061779,99386.0,99385.0,0.018]
[1734056404121,0.10061779,99386.0,99385.0,0.009]
[1734056404324,0.10061779,99386.0,99385.0,0.018]
[1734056404727,0.10061779,99386.0,99385.0,0.009]
[1734056405423,0.10061779,99386.0,99374.0,0.050297]
[1734056405625,0.050295,99378.0,99374.0,0.050297]
[1734056405829,0.050295,99378.0,99376.0,0.050296]
[1734056408333,0.051295,99378.0,99376.0,0.059296]
[1734056408534,0.051295,99378.0,99376.0,0.068296]
[1734056408927,0.050295,99378.0,99376.0,0.068296]
[1734056409129,0.051295,99378.0,99376.0,0.068296]
[1734056410333,0.051295,99378.0,99376.0,0.018]
[1734056410930,0.1006269,99377.0,99376.0,0.018]
[1734056411529,0.1006269,99377.0,99376.0,0.009]
[1734056411735,0.050298,99373.0,99371.0,0.050298]
[1734056412844,0.050298,99373.0,99371.0,0.059298]
[1734056413239,0.051298,99373.0,99371.0,0.018]
[1734056416644,0.050298,99372.0,99371.0,0.018]
[1734056417842,0.050298,99372.0,99371.0,0.009]
[1734056418049,0.051298,99372.0,99371.0,0.018]
[1734056418346,0.15193047,99372.0,99371.0,0.018]
[1734056419735,0.15193047,99372.0,99371.0,0.068298]
[1734056420246,0.10163247,99372.0,99371.0,0.068298]
[1734056426250,0.11942438,99393.0,99371.0,0.318]
[1734056426440,0.11942438,99397.0,99394.0,0.050286]
[1734056426640,0.11942438,99397.0,99392.0,0.3608]
[1734056426641,0.11942438,99398.0,99397.0,0.050285]
[1734056426850,0.10063247,99401.0,99392.0,0.3608]
[1734056427038,0.050289,99390.0,99385.0,0.24090338]
[1734056427242,0.3608,99398.0,99381.0,0.050293]
[1734056427243,0.3608,99388.0,99381.0,0.24090338]
[1734056427445,0.050293,99383.0,99379.0,0.24090338]
[1734056427649,0.050293,99383.0,99376.0,0.24090338]
[1734056427940,0.050293,99383.0,99382.0,0.24089147]
[1734056428140,0.050293,99383.0,99378.0,0.24089147]
[1734056428344,0.10062437,99383.0,99371.0,0.24989147]
[1734056428652,0.050294,99379.0,99371.0,0.24089147]
[1734056428951,0.050294,99379.0,99370.0,0.60169147]
[1734056429153,0.1400332,99379.0,99370.0,0.60169147]
[1734056429452,0.10062893,99378.0,99370.0,0.60169147]
[1734056429748,0.10062893,99378.0,99370.0,0.65199047]
[1734056429947,0.19036813,99378.0,99371.0,0.24089147]
[1734056430153,0.19036813,99378.0,99371.0,0.29118947]
[1734056430345,0.19036813,99378.0,99371.0,0.30018947]
[1734056430551,0.19036813,99378.0,99371.0,0.30918947]
[1734056431355,0.050298,99372.0,99371.0,0.018]
[1734056431541,0.050298,99372.0,99371.0,0.009]
[1734056431752,0.050298,99372.0,99371.0,0.018]
[1734056432047,0.24066663,99372.0,99371.0,0.018]
[1734056432551,0.15092743,99372.0,99371.0,0.018]
[1734056433251,0.15092743,99372.0,99371.0,0.009]
[1734056433556,0.15192743,99372.0,99371.0,0.018]
[1734056434151,0.10162943,99372.0,99363.0,0.29119347]
[1734056434346,0.08971783,99371.0,99364.0,0.0440263]
[1734056434547,0.08971783,99370.0,99363.0,0.050302]
[1734056434845,0.08971783,99371.0,99364.0,0.28491832]
[1734056435055,0.10063247,99369.0,99365.0,0.04402685]
[1734056435347,0.09071783,99372.0,99363.0,0.29119347]
[1734056435348,0.08971783,99371.0,99363.0,0.29119347]
[1734056435549,0.19035536,99371.0,99363.0,0.29119347]
[1734056435751,0.19035536,99371.0,99364.0,0.28491792]
[1734056435952,0.19035536,99371.0,99365.0,0.04402645]
[1734056435953,0.050299,99370.0,99365.0,0.04402645]
[1734056436156,0.15093552,99370.0,99363.0,0.29119347]
[1734056436352,0.15093552,99370.0,99364.0,0.04402608]
[1734056436556,0.15093552,99370.0,99363.0,0.30919347]
[1734056436748,0.0503,99369.0,99364.0,0.04402641]
[1734056437052,0.0503,99369.0,99363.0,0.30919347]
[1734056437053,0.0503,99369.0,99365.0,0.009]
[1734056437354,0.10063753,99368.0,99365.0,0.009]
[1734056437554,0.10063753,99368.0,99363.0,0.30019347]
[1734056437753,0.050301,99366.0,99364.0,0.04402626]
[1734056437958,0.050301,99366.0,99364.0,0.24089147]
[1734056438252,0.050302,99364.0,99362.0,0.24089147]
[1734056438448,0.08971783,99365.0,99355.0,0.050306]
[1734056438449,0.050303,99361.0,99359.0,0.24089147]
[1734056438953,0.10063905,99360.0,99359.0,0.24089147]
[1734056439347,0.050304,99359.0,99351.0,0.24089147]
[1734056439547,0.050309,99350.0,99347.0,0.24089147]
[1734056439753,0.050309,99350.0,99346.0,0.24089147]
[1734056440054,0.2200685,99349.0,99341.0,0.24089147]
[1734056440256,0.2200685,99349.0,99338.0,0.24089147]
[1734056440257,0.050315,99339.0,99338.0,0.24089147]
[1734056440553,0.050318,99333.0,99332.0,0.3608]
[1734056440954,0.050318,99333.0,99327.0,0.050321]
[1734056440955,0.089614,99336.0,99330.0,0.24098311]
[1734056441157,0.050319,99331.0,99327.0,0.050321]
[1734056441653,0.050319,99331.0,99324.0,0.0778]
[1734056441654,0.050319,99331.0,99328.0,0.05032]
[1734056442052,0.10067198,99330.0,99328.0,0.05032]
[1734056443055,0.050316,99336.0,99324.0,0.0778]
[1734056443258,0.050316,99336.0,99329.0,0.050319]
[1734056443459,0.001,99331.0,99329.0,0.050319]
[1734056444269,0.10067451,99330.0,99329.0,0.050319]
[1734056444560,0.10067451,99330.0,99329.0,0.059319]
[1734056444964,0.050318,99333.0,99329.0,0.059319]
[1734056445163,0.10067502,99330.0,99329.0,0.059319]
[1734056445565,0.050318,99333.0,99329.0,0.059319]
[1734056445765,0.10067502,99330.0,99329.0,0.059319]
[1734056446066,0.050318,99333.0,99329.0,0.059319]
[1734056446369,0.10067502,99330.0,99329.0,0.059319]
[1734056446665,0.001,99330.0,99329.0,0.068319]
[1734056446867,0.10167502,99330.0,99329.0,0.059319]
[1734056447163,0.001,99330.0,99329.0,0.068319]
[1734056447357,0.051318,99333.0,99329.0,0.068319]
[1734056447557,0.10067502,99330.0,99329.0,0.068319]
[1734056447765,0.051318,99333.0,99329.0,0.068319]
[1734056447971,0.10067502,99330.0,99329.0,0.059319]
[1734056448267,0.001,99330.0,99329.0,0.068319]
[1734056449057,0.1016735,99330.0,99329.0,0.068319]
[1734056449663,0.1006735,99330.0,99329.0,0.059319]
[1734056449861,0.1006735,99330.0,99329.0,0.068319]
[1734056450164,0.051318,99333.0,99329.0,0.059319]
[1734056450365,0.051318,99333.0,99329.0,0.068319]
[1734056450366,0.10067502,99330.0,99329.0,0.068319]
[1734056450560,0.051318,99333.0,99329.0,0.068319]
[1734056450761,0.050318,99333.0,99329.0,0.059319]
[1734056450964,0.10167502,99330.0,99329.0,0.068319]
[1734056451165,0.001,99330.0,99329.0,0.068319]
[1734056451564,0.1016735,99330.0,99329.0,0.068319]
[1734056452566,0.1006735,99330.0,99329.0,0.059319]
[1734056452761,0.1006735,99330.0,99329.0,0.068319]
[1734056453074,0.051318,99333.0,99329.0,0.068319]
[1734056453271,0.10067502,99330.0,99329.0,0.068319]
[1734056453473,0.001,99333.0,99331.0,0.050319]
[1734056453662,0.10067502,99332.0,99331.0,0.050319]
[1734056454065,0.050318,99333.0,99331.0,0.050319]
[1734056454369,0.10067502,99332.0,99331.0,0.050319]
[1734056454678,0.050318,99333.0,99331.0,0.050319]
[1734056454882,0.10067299,99332.0,99331.0,0.050319]
[1734056455777,0.050319,99330.0,99326.0,0.050321]
[1734056456073,0.050319,99330.0,99327.0,0.050321]
[1734056456274,0.050319,99330.0,99329.0,0.05032]
[1734056456465,0.10067654,99329.0,99328.0,0.05032]
[1734056456671,0.001,99332.0,99328.0,0.05032]
[1734056457073,0.10067654,99329.0,99328.0,0.05032]
[1734056457376,0.050318,99333.0,99329.0,0.009]
[1734056457377,0.001,99330.0,99329.0,0.009]
[1734056457972,0.10167451,99330.0,99329.0,0.009]
[1734056459084,0.10067451,99330.0,99328.0,0.06832]
[1734056459580,0.10067451,99330.0,99328.0,0.05932]
[1734056459581,0.001,99330.0,99328.0,0.05932]
[1734056459773,0.001,99330.0,99329.0,0.009]
[1734056459774,0.002,99330.0,99329.0,0.009]
[1734056460168,0.001,99330.0,99329.0,0.009]
[1734056460372,0.10167502,99330.0,99329.0,0.009]
[1734056460676,0.10167502,99330.0,99328.0,0.06832]
[1734056461977,0.15199402,99330.0,99328.0,0.018]
[1734056462178,0.15199402,99330.0,99313.0,0.411128]
[1734056462179,0.050326,99316.0,99313.0,0.411128]
[1734056462378,0.050327,99315.0,99313.0,0.411128]
[1734056462776,0.10067553,99314.0,99313.0,0.411128]
[1734056463383,0.10067553,99314.0,99313.0,0.45517615]
[1734056463677,0.10067553,99314.0,99313.0,0.059328]
[1734056463879,0.10167553,99314.0,99313.0,0.068328]
[1734056465077,0.10167553,99314.0,99313.0,0.059328]
[1734056465283,0.10067553,99314.0,99313.0,0.059328]
[1734056465586,0.10167553,99314.0,99313.0,0.068328]
[1734056466080,0.10067553,99314.0,99313.0,0.059328]
[1734056466279,0.11168429,99314.0,99313.0,0.068328]
[1734056468386,0.001,99314.0,99313.0,0.068328]
[1734056468590,0.001,99314.0,99313.0,0.11237568]
[1734056468882,0.001,99314.0,99313.0,0.3682884]
[1734056470782,0.001,99314.0,99313.0,0.73004148]
[1734056470987,0.089614,99336.0,99320.0,0.09720536]
[1734056471192,0.089614,99337.0,99335.0,0.050317]
[1734056471487,0.10069124,99337.0,99335.0,0.050317]
[1734056471682,0.089614,99338.0,99335.0,0.050317]
[1734056471988,0.10069124,99336.0,99335.0,0.050317]
[1734056472189,0.089614,99338.0,99335.0,0.050317]
[1734056472392,0.10166793,99336.0,99335.0,0.050317]
[1734056472793,0.001,99336.0,99335.0,0.050317]
[1734056473095,0.10066793,99336.0,99335.0,0.050317]
[1734056474093,0.090614,99338.0,99335.0,0.050317]
[1734056474293,0.10066894,99337.0,99335.0,0.050317]
[1734056474584,0.089614,99338.0,99335.0,0.050317]
[1734056474786,0.001,99336.0,99335.0,0.050317]
[1734056474986,0.001,99336.0,99329.0,0.24116484]
[1734056475186,0.050321,99326.0,99322.0,0.29148784]
[1734056475386,0.050321,99326.0,99323.0,0.0440446]
[1734056475591,0.050321,99326.0,99322.0,0.050323]
[1734056476091,0.1904441,99325.0,99318.0,0.24116484]
[1734056476292,0.050325,99320.0,99318.0,0.24116484]
[1734056476681,0.1006806,99319.0,99318.0,0.24116484]
[1734056477591,0.1006806,99319.0,99312.0,0.33995605]
[1734056477796,0.1006806,99319.0,99317.0,0.050326]
[1734056477983,0.1006806,99319.0,99318.0,0.05304626]
[1734056478189,0.050322,99324.0,99318.0,0.10337126]
[1734056478389,0.10068668,99323.0,99320.0,0.24114427]
[1734056478794,0.050324,99321.0,99320.0,0.24114427]
[1734056479094,0.050325,99319.0,99318.0,0.009]
[1734056479294,0.050325,99319.0,99318.0,0.30319559]
[1734056479485,0.050325,99319.0,99318.0,0.25914902]
[1734056479886,0.050325,99319.0,99318.0,0.25914986]
[1734056480085,0.15100914,99319.0,99318.0,0.25914897]
[1734056480295,0.15100914,99319.0,99318.0,0.018]
[1734056480590,0.15100914,99319.0,99314.0,0.050327]
[1734056481596,0.15200914,99319.0,99318.0,0.25015132]
[1734056481890,0.15200914,99319.0,99318.0,0.018]
[1734056482396,0.15200914,99319.0,99315.0,0.050327]
[1734056483891,0.15200914,99319.0,99318.0,0.018]
[1734056484489,0.15200914,99319.0,99318.0,0.009]
[1734056484693,0.15200914,99319.0,99316.0,0.050326]
[1734056485287,0.15200914,99319.0,99318.0,0.009]
[1734056485494,0.15200914,99319.0,99318.0,0.018]
[1734056486994,0.15100914,99319.0,99318.0,0.009]
[1734056487197,0.15200914,99319.0,99318.0,0.009]
[1734056487491,0.15200914,99319.0,99318.0,0.04404729]
[1734056487887,0.15200914,99319.0,99318.0,0.05304729]
[1734056488594,0.15200914,99319.0,99318.0,0.018]
[1734056490998,0.15200914,99319.0,99318.0,0.25918628]
[1734056491998,0.15200914,99319.0,99318.0,0.018]
[1734056492199,0.15200914,99319.0,99318.0,0.25922564]
[1734056494299,0.2417843,99319.0,99318.0,0.018]
[1734056494498,0.15200914,99319.0,99318.0,0.018]
[1734056497597,0.15200914,99319.0,99312.0,0.24122564]
[1734056497598,0.050328,99313.0,99312.0,0.24122564]
[1734056497995,0.05924565,99313.0,99312.0,0.24122564]
[1734056498396,0.15993182,99313.0,99311.0,0.29155364]
[1734056498698,0.00891765,99312.0,99311.0,0.29155364]
[1734056498892,0.00891765,99312.0,99311.0,0.24122564]
[1734056499293,0.1096099,99312.0,99311.0,0.24122564]
[1734056500699,0.1096099,99312.0,99308.0,0.24273601]
[1734056500901,0.05033,99309.0,99308.0,0.00151037]
[1734056501103,0.05924765,99309.0,99308.0,0.00151037]
[1734056501496,0.15994396,99309.0,99308.0,0.00151037]
[1734056501699,0.24974752,99309.0,99308.0,0.00151037]
[1734056501999,0.15102631,99309.0,99308.0,0.01051037]
[1734056502504,0.24082834,99309.0,99308.0,0.01051037]
[1734056502707,0.24082834,99309.0,99308.0,0.01951037]
[1734056502708,0.15102631,99309.0,99308.0,0.01951037]
[1734056503398,0.15202631,99309.0,99308.0,0.01951037]
[1734056504507,0.001,99309.0,99308.0,0.06833]
[1734056504805,0.001,99309.0,99308.0,0.11238232]
[1734056505013,0.001,99309.0,99308.0,0.14698232]
[1734056505206,0.001,99309.0,99308.0,0.18008232]
[1734056505503,0.001,99309.0,99308.0,0.13603]
[1734056508598,0.001,99309.0,99308.0,0.18007974]
[1734056508800,0.001,99309.0,99308.0,0.13603]
[1734056513605,0.001,99309.0,99308.0,0.10293]
[1734056513807,0.001,99309.0,99308.0,0.0526]
[1734056515810,0.09082925,99309.0,99308.0,0.0526]
[1734056516205,0.001,99309.0,99308.0,0.0526]
[1734056516411,0.19152556,99309.0,99308.0,0.0526]
[1734056517611,0.10169631,99309.0,99308.0,0.0526]
[1734056519908,0.001,99309.0,99308.0,0.3549834]
[1734056521302,0.0099169,99309.0,99308.0,0.3549834]
[1734056522104,0.001,99309.0,99308.0,0.71693326]
[1734056524202,0.001,99309.0,99308.0,0.3549834]
[1734056525010,0.08988163,99326.0,99308.0,0.31093179]
[1734056525315,0.06386486,99330.0,99308.0,0.31093179]
[1734056525316,0.08988163,99327.0,99325.0,0.050322]
[1734056525517,0.37109431,99329.0,99325.0,0.050322]
[1734056525817,0.08986739,99326.0,99325.0,0.050322]
[1734056526208,0.09086739,99326.0,99325.0,0.050322]
[1734056526409,0.10168769,99326.0,99325.0,0.050322]
[1734056527120,0.10268769,99326.0,99325.0,0.050322]
[1734056527818,0.10168769,99326.0,99325.0,0.050322]
[1734056528021,0.10168769,99326.0,99325.0,0.411122]
[1734056528209,0.001,99326.0,99325.0,0.411122]
[1734056528720,0.001,99326.0,99325.0,0.74560482]
[1734056529107,0.001,99326.0,99325.0,0.444022]
[1734056530524,0.001,99326.0,99325.0,0.45397824]
[1734056531022,0.00151076,99334.0,99333.0,0.050318]
[1734056531215,0.08986739,99355.0,99333.0,0.40483924]
[1734056531411,0.08986739,99357.0,99352.0,0.050308]
[1734056531710,0.08986739,99357.0,99349.0,0.18063695]
[1734056531711,0.08986739,99362.0,99357.0,0.050305]
[1734056531911,0.0354,99363.0,99357.0,0.050305]
[1734056531912,0.050304,99361.0,99357.0,0.050305]
[1734056532218,0.15097497,99361.0,99357.0,0.050305]
[1734056532421,0.050304,99361.0,99357.0,0.050305]
[1734056532613,0.10064513,99360.0,99357.0,0.050305]
[1734056533223,0.15094913,99360.0,99357.0,0.050305]
[1734056533415,0.050304,99360.0,99357.0,0.050305]
[1734056533723,0.10064564,99359.0,99357.0,0.050305]
[1734056537420,0.00132,99364.0,99362.0,0.050303]
[1734056537615,0.0327,99371.0,99368.0,0.0503]
[1734056538020,0.10064614,99370.0,99368.0,0.0503]
[1734056538720,0.10064614,99370.0,99363.0,0.050302]
[1734056539224,0.10064614,99370.0,99357.0,0.3608]
[1734056539225,0.15094514,99370.0,99364.0,0.050302]
[1734056539424,0.15094514,99370.0,99368.0,0.050299]
[1734056543427,0.050292,99384.0,99374.0,0.050297]
[1734056544022,0.10214522,99375.0,99374.0,0.050297]
[1734056544525,0.00151022,99375.0,99374.0,0.050297]
[1734056544930,0.01011951,99383.0,99368.0,0.01008523]
[1734056545222,0.050285,99398.0,99393.0,0.050287]
[1734056545625,0.050285,99398.0,99394.0,0.3608]
[1734056545626,0.10062842,99398.0,99394.0,0.3608]
[1734056545829,0.00150945,99404.0,99394.0,0.3608]
[1734056546022,0.08327,99427.0,99418.0,0.050274]
[1734056546219,0.05027,99427.0,99420.0,0.050274]
[1734056546723,0.10058085,99426.0,99420.0,0.050274]
[1734056547524,0.3608,99422.0,99403.0,0.3608]
[1734056547724,0.050279,99409.0,99403.0,0.3608]
[1734056548226,0.10058034,99408.0,99403.0,0.3608]
[1734056548421,0.10058034,99408.0,99398.0,0.050284]
[1734056550129,0.050281,99406.0,99398.0,0.050284]
[1734056550522,0.10060058,99407.0,99398.0,0.050284]
[1734056550723,0.050281,99405.0,99398.0,0.050284]
[1734056551327,0.0337,99411.0,99395.0,0.00150908]
[1734056551529,0.3608,99413.0,99401.0,0.050283]
[1734056551729,0.3608,99413.0,99410.0,0.050278]
[1734056551934,0.1006021,99412.0,99410.0,0.050278]
[1734056558035,0.050279,99410.0,99403.0,0.050282]
[1734056558232,0.050279,99410.0,99401.0,0.3943]
[1734056558433,0.01030501,99419.0,99407.0,0.05028]
[1734056558638,0.0674,99428.0,99407.0,0.05028]
[1734056558840,0.050276,99416.0,99407.0,0.05028]
[1734056559227,0.0674,99428.0,99407.0,0.05028]
[1734056559228,0.050276,99415.0,99407.0,0.05028]
[1734056559428,0.10059704,99415.0,99407.0,0.05028]
[1734056559734,0.15699283,99428.0,99407.0,0.05028]
[1734056559735,0.050278,99412.0,99407.0,0.05028]
[1734056562840,0.050273,99421.0,99407.0,0.05028]
[1734056563042,0.050277,99413.0,99407.0,0.05028]
[1734056563536,0.050277,99413.0,99401.0,0.3943]
[1734056563741,0.050277,99413.0,99412.0,0.050278]
[1734056564241,0.1508705,99413.0,99412.0,0.050278]
[1734056564437,0.1005935,99413.0,99412.0,0.050278]
[1734056564644,0.050274,99419.0,99417.0,0.050275]
[1734056564939,0.10059097,99418.0,99417.0,0.050275]
[1734056566337,0.10059097,99418.0,99410.0,0.0356]
[1734056566338,0.37230306,99422.0,99421.0,0.050273]
[1734056566540,0.37098306,99422.0,99421.0,0.050273]
[1734056568345,0.3608,99422.0,99421.0,0.050273]
[1734056570234,0.45049814,99422.0,99421.0,0.050273]
[1734056570439,0.3608,99422.0,99421.0,0.050273]
[1734056573334,0.3608,99422.0,99411.0,0.01002735]
[1734056573544,0.17012022,99419.0,99415.0,0.050276]
[1734056573745,0.11984622,99417.0,99415.0,0.050276]
[1734056573948,0.46266186,99422.0,99411.0,0.050278]
[1734056573949,0.17012222,99416.0,99411.0,0.050278]
[1734056574243,0.11984622,99413.0,99411.0,0.050278]
[1734056574641,0.050276,99416.0,99411.0,0.050278]
[1734056574642,0.11984622,99414.0,99411.0,0.050278]
[1734056575151,0.10059147,99415.0,99412.0,0.23077668]
[1734056575342,0.050276,99416.0,99413.0,0.18049968]
[1734056575538,0.10059147,99414.0,99413.0,0.18049968]
[1734056575951,0.050276,99416.0,99413.0,0.18049968]
[1734056576347,0.10058996,99415.0,99413.0,0.18049968]